lending/lending_fUSD_20241115
["ID","MTS","AMOUNT","RATE_DAILY","PERIOD"]
[342290762,1731696647031,-500.0,9.787e-05,2]
[342290763,1731696647041,-500.0,9.787e-05,2]
[342290764,1731696647050,-500.0,9.787e-05,2]
[342290765,1731696647060,-500.0,9.787e-05,2]
[342290766,1731696647069,-620.38,9.787e-05,2]
[342290767,1731696647079,-500.0,9.787e-05,2]
[342290768,1731696647088,-500.0,9.787e-05,2]
[342290769,1731696647099,-500.0,9.787e-05,2]
[342290770,1731696647113,-979.28,9.787e-05,2]
[342290771,1731696647122,-1339.76,9.787e-05,2]
[342290772,1731696647132,-500.0,9.787e-05,2]
[342290773,1731696647141,-500.0,9.787e-05,2]
[342290774,1731696647151,-500.0,9.787e-05,2]
[342290775,1731696647161,-500.0,9.787e-05,2]
[342290776,1731696647171,-539.67,9.787e-05,2]
[342290777,1731696647181,-500.0,9.787e-05,2]
[342290778,1731696647191,-500.0,9.787e-05,2]
[342290779,1731696647201,-679.66,9.787e-05,2]
[342290780,1731696647210,-500.0,9.787e-05,2]
[342290781,1731696647220,-500.0,9.787e-05,2]
[342290782,1731696647229,-677.33,9.787e-05,2]
[342290783,1731696647238,-500.0,9.787e-05,2]
[342290784,1731696647248,-500.0,9.787e-05,2]
[342290785,1731696647257,-861.11,9.787e-05,2]
[342290786,1731696647267,-521.32,9.787e-05,2]
[342290787,1731696647276,-500.0,9.787e-05,2]
[342290788,1731696647285,-500.0,9.787e-05,2]
[342290789,1731696647295,-500.0,9.787e-05,2]
[342290790,1731696647305,-500.0,9.787e-05,2]
[342290791,1731696647316,-549.8,9.787e-05,2]
[342290792,1731696647326,-1120.73,9.787e-05,2]
[342290793,1731696647335,-500.6,9.787e-05,2]
[342290794,1731696647424,-500.0,9.787e-05,2]
[342290795,1731696647434,-552.21,9.787e-05,2]
[342290796,1731696647444,-500.0,9.787e-05,2]
[342290797,1731696647454,-500.0,9.787e-05,2]
[342290798,1731696647463,-981.91,9.787e-05,2]
[342290799,1731696647473,-644.99,9.787e-05,2]
[342290800,1731696647483,-887.09,9.787e-05,2]
[342290801,1731696647492,-500.0,9.787e-05,2]
[342290802,1731696647501,-500.0,9.787e-05,2]
[342290803,1731696647511,-500.0,9.787e-05,2]
[342290804,1731696647520,-845.55,9.787e-05,2]
[342290805,1731696647529,-500.0,9.787e-05,2]
[342290806,1731696647539,-579.01,9.787e-05,2]
[342290807,1731696647549,-173.98596908,9.787e-05,2]
[342290808,1731696647559,-500.0,9.787e-05,2]
[342290809,1731696647569,-500.0,9.787e-05,2]
[342290810,1731696647579,-500.0,9.787e-05,2]
[342290811,1731696647589,-500.0,9.787e-05,2]
[342290812,1731696647599,-2549.23,9.787e-05,2]
[342290813,1731696647615,-988.4,9.787e-05,2]
[342290814,1731696647624,-1603.72,9.787e-05,2]
[342290815,1731696647634,-775.76,9.787e-05,2]
[342290816,1731696647646,-500.0,9.787e-05,2]
[342290817,1731696647656,-500.0,9.787e-05,2]
[342290818,1731696647666,-582.86,9.787e-05,2]
[342290819,1731696647676,-2274.93,9.787e-05,2]
[342290820,1731696647686,-968.12,9.787e-05,2]
[342290821,1731696647696,-500.0,9.787e-05,2]
[342290822,1731696647710,-746.96,9.787e-05,2]
[342290823,1731696647720,-500.0,9.787e-05,2]
[342290824,1731696647730,-1888.27,9.787e-05,2]
[342290825,1731696647740,-500.0,9.787e-05,2]
[342290826,1731696647750,-2627.2,9.787e-05,2]
[342290827,1731696647759,-623.44,9.787e-05,2]
[342290828,1731696647769,-500.0,9.787e-05,2]
[342290829,1731696647778,-537.92,9.787e-05,2]
[342290830,1731696647792,-554.76,9.787e-05,2]
[342290831,1731696647802,-1512.96,9.787e-05,2]
[342290832,1731696647811,-500.0,9.787e-05,2]
[342290833,1731696647821,-500.0,9.787e-05,2]
[342290834,1731696647830,-508.07,9.787e-05,2]
[342290835,1731696647840,-500.0,9.787e-05,2]
[342290836,1731696647850,-500.0,9.787e-05,2]
[342290837,1731696647863,-1643.32,9.787e-05,2]
[342290838,1731696647872,-500.0,9.787e-05,2]
[342290839,1731696647881,-500.0,9.787e-05,2]
[342290840,1731696647891,-1433.17,9.787e-05,2]
[342290841,1731696647900,-671.32,9.787e-05,2]
[342290842,1731696647910,-1037.01,9.787e-05,2]
[342290843,1731696647919,-500.0,9.787e-05,2]
[342290844,1731696647928,-500.0,9.787e-05,2]
[342290845,1731696647938,-300.70145146,9.787e-05,2]
[342290846,1731696647948,-500.0,9.787e-05,2]
[342290847,1731696647957,-500.0,9.787e-05,2]
[342290848,1731696647967,-500.0,9.787e-05,2]
[342290849,1731696647976,-585.29,9.787e-05,2]
[342290850,1731696647986,-510.87,9.787e-05,2]
[342290851,1731696647995,-766.92,9.787e-05,2]
[342290852,1731696648005,-500.0,9.787e-05,2]
[342290853,1731696648015,-833.5,9.787e-05,2]
[342290854,1731696648024,-1090.41,9.787e-05,2]
[342290855,1731696648034,-500.0,9.787e-05,2]
[342290856,1731696648044,-889.41,9.787e-05,2]
[342290857,1731696648054,-806.38,9.787e-05,2]
[342290858,1731696648063,-500.0,9.787e-05,2]
[342290859,1731696648074,-512.67,9.787e-05,2]
[342290860,1731696648084,-1138.32,9.787e-05,2]
[342290861,1731696648094,-710.55,9.787e-05,2]
[342290862,1731696648104,-500.0,9.787e-05,2]
[342290863,1731696648117,-817.71,9.787e-05,2]
[342290864,1731696648127,-759.82,9.787e-05,2]
[342290865,1731696648137,-500.0,9.787e-05,2]
[342290866,1731696648147,-500.0,9.787e-05,2]
[342290867,1731696648157,-500.0,9.787e-05,2]
[342290868,1731696648168,-500.0,9.787e-05,2]
[342290869,1731696648178,-500.0,9.787e-05,2]
[342290870,1731696648188,-500.0,9.787e-05,2]
[342290871,1731696648197,-838.36,9.787e-05,2]
[342290872,1731696648208,-500.0,9.787e-05,2]
[342290873,1731696648218,-500.0,9.787e-05,2]
[342290874,1731696648228,-500.0,9.787e-05,2]
[342290875,1731696648237,-500.0,9.787e-05,2]
[342290876,1731696648247,-500.0,9.787e-05,2]
[342290877,1731696648256,-655.52,9.787e-05,2]
[342290878,1731696648266,-522.95,9.787e-05,2]
[342290879,1731696648276,-500.0,9.787e-05,2]
[342290880,1731696648286,-621.33,9.787e-05,2]
[342290881,1731696648300,-500.0,9.787e-05,2]
[342290882,1731696648311,-500.0,9.787e-05,2]
[342290883,1731696648320,-638.33,9.787e-05,2]
[342290884,1731696648331,-500.0,9.787e-05,2]
[342290885,1731696648341,-500.0,9.787e-05,2]
[342290886,1731696648351,-500.0,9.787e-05,2]
[342290887,1731696648363,-500.0,9.787e-05,2]
[342290888,1731696648373,-500.0,9.787e-05,2]
[342290889,1731696648383,-500.0,9.787e-05,2]
[342290890,1731696648393,-500.0,9.787e-05,2]
[342290891,1731696648403,-560.7,9.787e-05,2]
[342290892,1731696648413,-500.0,9.787e-05,2]
[342290893,1731696648423,-500.0,9.787e-05,2]
[342290894,1731696648432,-539.35,9.787e-05,2]
[342290895,1731696648442,-500.0,9.787e-05,2]
[342290896,1731696648451,-500.0,9.787e-05,2]
[342290897,1731696648461,-500.0,9.787e-05,2]
[342290898,1731696648471,-500.0,9.787e-05,2]
[342290899,1731696648480,-500.0,9.787e-05,2]
[342290900,1731696648490,-685.84,9.787e-05,2]
[342290901,1731696648499,-2698.45,9.787e-05,2]
[342290902,1731696648509,-697.09,9.787e-05,2]
[342290903,1731696648518,-500.0,9.787e-05,2]
[342290904,1731696648527,-500.0,9.787e-05,2]
[342290905,1731696648537,-500.0,9.787e-05,2]
[342290906,1731696648547,-660.64,9.787e-05,2]
[342290907,1731696648556,-883.27,9.787e-05,2]
[342290908,1731696648566,-500.0,9.787e-05,2]
[342290909,1731696648576,-500.0,9.787e-05,2]
[342290910,1731696648586,-1424.51,9.787e-05,2]
[342290911,1731696648595,-500.0,9.787e-05,2]
[342290912,1731696648608,-1598.09,9.787e-05,2]
[342290913,1731696648618,-500.0,9.787e-05,2]
[342290914,1731696648628,-500.0,9.787e-05,2]
[342290915,1731696648638,-500.0,9.787e-05,2]
[342290916,1731696648648,-500.0,9.787e-05,2]
[342290917,1731696648658,-628.25852506,9.787e-05,2]
[342290918,1731696648668,-500.0,9.787e-05,2]
[342290919,1731696648678,-500.0,9.787e-05,2]
[342290920,1731696648688,-500.0,9.787e-05,2]
[342290921,1731696648700,-500.0,9.787e-05,2]
[342290922,1731696648712,-500.0,9.787e-05,2]
[342290923,1731696648723,-375.96,9.787e-05,2]
[342290924,1731696648734,-2520.91,9.787e-05,2]
[342290925,1731696648746,-500.0,9.787e-05,2]
[342290926,1731696648757,-500.0,9.787e-05,2]
[342290927,1731696648767,-500.0,9.787e-05,2]
[342290928,1731696648778,-500.0,9.787e-05,2]
[342290929,1731696648790,-500.0,9.787e-05,2]
[342290930,1731696648799,-1217.91,9.787e-05,2]
[342290931,1731696648810,-500.0,9.787e-05,2]
[342290932,1731696648819,-1955.18,9.787e-05,2]
[342290933,1731696648830,-500.0,9.787e-05,2]
[342290934,1731696648839,-500.0,9.787e-05,2]
[342290935,1731696648849,-500.0,9.787e-05,2]
[342290936,1731696648861,-500.0,9.787e-05,2]
[342290937,1731696648871,-1768.08,9.787e-05,2]
[342290938,1731696648880,-883.51,9.787e-05,2]
[342290939,1731696648890,-873.57,9.787e-05,2]
[342290940,1731696648900,-500.0,9.787e-05,2]
[342290941,1731696648909,-582.91,9.787e-05,2]
[342290942,1731696648919,-503.89944843,9.787e-05,2]
[342290943,1731696648928,-1163.08,9.787e-05,2]
[342290944,1731696648938,-500.0,9.787e-05,2]
[342290945,1731696648948,-500.0,9.787e-05,2]
[342290946,1731696648958,-1333.69,9.787e-05,2]
[342290947,1731696648967,-2206.78,9.787e-05,2]
[342290948,1731696648977,-1134.3,9.787e-05,2]
[342290949,1731696648986,-500.0,9.787e-05,2]
[342290950,1731696648995,-759.05,9.787e-05,2]
[342290951,1731696649005,-500.0,9.787e-05,2]
[342290952,1731696649015,-704.99,9.787e-05,2]
[342290953,1731696649024,-500.0,9.787e-05,2]
[342290954,1731696649034,-3486.45,9.787e-05,2]
[342290955,1731696649044,-500.0,9.787e-05,2]
[342290956,1731696649053,-500.0,9.787e-05,2]
[342290957,1731696649063,-726.88,9.787e-05,2]
[342290958,1731696649073,-626.07,9.787e-05,2]
[342290959,1731696649083,-500.0,9.787e-05,2]
[342290960,1731696649092,-500.0,9.787e-05,2]
[342290961,1731696649102,-213.05,9.787e-05,2]
[342290962,1731696649116,-500.0,9.787e-05,2]
[342290963,1731696649126,-500.0,9.787e-05,2]
[342290964,1731696649136,-3020.89,9.787e-05,2]
[342290965,1731696649146,-500.0,9.787e-05,2]
[342290966,1731696649156,-500.0,9.787e-05,2]
[342290967,1731696649165,-500.0,9.787e-05,2]
[342290968,1731696649175,-1235.54,9.787e-05,2]
[342290969,1731696649184,-250.0,9.787e-05,2]
[342290970,1731696649195,-1169.24,9.787e-05,2]
[342290971,1731696649205,-1332.93,9.787e-05,2]
[342290972,1731696649215,-605.76725476,9.787e-05,2]
[342290973,1731696649225,-500.0,9.787e-05,2]
[342290974,1731696649235,-1656.91,9.787e-05,2]
[342290975,1731696649245,-150.0,9.787e-05,2]
[342290976,1731696649254,-646.64,9.787e-05,2]
[342290977,1731696649264,-500.0,9.787e-05,2]
[342290978,1731696649273,-500.0,9.787e-05,2]
[342290979,1731696649283,-500.0,9.787e-05,2]
[342290980,1731696649293,-2072.82,9.787e-05,2]
[342290981,1731696649302,-623.41,9.787e-05,2]
[342290982,1731696649312,-500.0,9.787e-05,2]
[342290983,1731696649321,-500.0,9.787e-05,2]
[342290984,1731696649330,-500.0,9.787e-05,2]
[342290985,1731696649340,-1446.58,9.787e-05,2]
[342290986,1731696649350,-21846.85,9.787e-05,2]
[342290987,1731696649363,-6671.48,9.787e-05,2]
[342290988,1731696649373,-500.0,9.787e-05,2]
[342290989,1731696649383,-500.0,9.787e-05,2]
[342290990,1731696649394,-734.09,9.787e-05,2]
[342290991,1731696649403,-500.0,9.787e-05,2]
[342290992,1731696649413,-500.0,9.787e-05,2]
[342290993,1731696649423,-500.0,9.787e-05,2]
[342290994,1731696649433,-500.0,9.787e-05,2]
[342290995,1731696649443,-500.0,9.787e-05,2]
[342290996,1731696649453,-1574.01,9.787e-05,2]
[342290997,1731696649463,-500.0,9.787e-05,2]
[342290998,1731696649473,-638.45,9.787e-05,2]
[342290999,1731696649483,-500.0,9.787e-05,2]
[342291000,1731696649493,-1449.07,9.787e-05,2]
[342291001,1731696649502,-500.0,9.787e-05,2]
[342291002,1731696649512,-500.0,9.787e-05,2]
[342291003,1731696649522,-500.0,9.787e-05,2]
[342291004,1731696649532,-500.0,9.787e-05,2]
[342291005,1731696649542,-500.0,9.787e-05,2]
[342291006,1731696649552,-498.26094126,9.787e-05,2]
[342291007,1731696649562,-1234.81,9.787e-05,2]
[342291008,1731696649572,-1970.85,9.787e-05,2]
[342291009,1731696649583,-625.25,9.787e-05,2]
[342291010,1731696649593,-1060.76,9.787e-05,2]
[342291011,1731696649603,-691.85,9.787e-05,2]
[342291012,1731696649617,-500.0,9.787e-05,2]
[342291013,1731696649627,-500.0,9.787e-05,2]
[342291014,1731696649637,-500.0,9.787e-05,2]
[342291015,1731696649647,-500.0,9.787e-05,2]
[342291016,1731696649657,-632.15,9.787e-05,2]
[342291017,1731696649667,-500.0,9.787e-05,2]
[342291018,1731696649677,-3202.96,9.787e-05,2]
[342291019,1731696649687,-853.12,9.787e-05,2]
[342291020,1731696649697,-500.0,9.787e-05,2]
[342291021,1731696649709,-500.0,9.787e-05,2]
[342291022,1731696649720,-1573.26,9.787e-05,2]
[342291023,1731696649730,-1908.28,9.787e-05,2]
[342291024,1731696649739,-748.4,9.787e-05,2]
[342291025,1731696649751,-500.0,9.787e-05,2]
[342291026,1731696649760,-500.0,9.787e-05,2]
[342291027,1731696649770,-500.0,9.787e-05,2]
[342291028,1731696649780,-500.0,9.787e-05,2]
[342291029,1731696649791,-500.0,9.787e-05,2]
[342291030,1731696649800,-500.0,9.787e-05,2]
[342291031,1731696649810,-500.0,9.787e-05,2]
[342291032,1731696649819,-807.38,9.787e-05,2]
[342291033,1731696649829,-6199.11,9.787e-05,2]
[342291034,1731696649838,-500.0,9.787e-05,2]
[342291035,1731696649848,-500.0,9.787e-05,2]
[342291036,1731696649863,-500.0,9.787e-05,2]
[342291037,1731696649873,-1183.75,9.787e-05,2]
[342291038,1731696649882,-500.0,9.787e-05,2]
[342291039,1731696649892,-500.0,9.787e-05,2]
[342291040,1731696649901,-575.03,9.787e-05,2]
[342291041,1731696649911,-577.2,9.787e-05,2]
[342291042,1731696649920,-500.0,9.787e-05,2]
[342291043,1731696649930,-2137.97,9.787e-05,2]
[342291044,1731696649939,-1930.23,9.787e-05,2]
[342291045,1731696649950,-500.0,9.787e-05,2]
[342291046,1731696649959,-520.18,9.787e-05,2]
[342291047,1731696649969,-3125.02,9.787e-05,2]
[342291048,1731696649978,-500.0,9.787e-05,2]
[342291049,1731696649988,-500.0,9.787e-05,2]
[342291050,1731696649997,-500.0,9.787e-05,2]
[342291051,1731696650007,-500.0,9.787e-05,2]
[342291052,1731696650017,-2795.81,9.787e-05,2]
[342291053,1731696650026,-880.33,9.787e-05,2]
[342291054,1731696650036,-1544.21,9.787e-05,2]
[342291055,1731696650046,-500.0,9.787e-05,2]
[342291056,1731696650055,-500.0,9.787e-05,2]
[342291057,1731696650065,-500.0,9.787e-05,2]
[342291058,1731696650074,-500.0,9.787e-05,2]
[342291059,1731696650084,-500.0,9.787e-05,2]
[342291060,1731696650094,-576.15,9.787e-05,2]
[342291061,1731696650103,-1841.53,9.787e-05,2]
[342291062,1731696650116,-500.0,9.787e-05,2]
[342291063,1731696650126,-500.0,9.787e-05,2]
[342291064,1731696650136,-500.0,9.787e-05,2]
[342291065,1731696650145,-500.0,9.787e-05,2]
[342291066,1731696650155,-511.98294634,9.787e-05,2]
[342291067,1731696650165,-740.19,9.787e-05,2]
[342291068,1731696650174,-500.0,9.787e-05,2]
[342291069,1731696650184,-500.0,9.787e-05,2]
[342291070,1731696650193,-1224.45,9.787e-05,2]
[342291071,1731696650203,-500.0,9.787e-05,2]
[342291072,1731696650212,-2559.43,9.787e-05,2]
[342291073,1731696650222,-500.0,9.787e-05,2]
[342291074,1731696650232,-500.0,9.787e-05,2]
[342291075,1731696650241,-1678.16,9.787e-05,2]
[342291076,1731696650251,-500.0,9.787e-05,2]
[342291077,1731696650260,-1355.4,9.787e-05,2]
[342291078,1731696650270,-442.38143862,9.787e-05,2]
[342291079,1731696650279,-500.0,9.787e-05,2]
[342291080,1731696650289,-500.0,9.787e-05,2]
[342291081,1731696650298,-666.01,9.787e-05,2]
[342291082,1731696650308,-500.0,9.787e-05,2]
[342291083,1731696650317,-596.11,9.787e-05,2]
[342291084,1731696650327,-7901.87,9.787e-05,2]
[342291085,1731696650336,-7901.87,9.787e-05,2]
[342291086,1731696650345,-500.0,9.787e-05,2]
[342291087,1731696650355,-250.76542321,9.787e-05,2]
[342291088,1731696650369,-500.0,9.787e-05,2]
[342291089,1731696650378,-1314.05,9.787e-05,2]
[342291090,1731696650388,-751.55,9.787e-05,2]
[342291091,1731696650397,-700.09,9.787e-05,2]
[342291092,1731696650407,-517.31,9.787e-05,2]
[342291093,1731696650416,-500.0,9.787e-05,2]
[342291094,1731696650425,-500.0,9.787e-05,2]
[342291095,1731696650435,-500.0,9.787e-05,2]
[342291096,1731696650444,-500.0,9.787e-05,2]
[342291097,1731696650454,-500.0,9.787e-05,2]
[342291098,1731696650463,-806.42,9.787e-05,2]
[342291099,1731696650472,-706.68,9.787e-05,2]
[342291100,1731696650482,-500.0,9.787e-05,2]
[342291101,1731696650492,-500.0,9.787e-05,2]
[342291102,1731696650502,-500.0,9.787e-05,2]
[342291103,1731696650511,-854.08,9.787e-05,2]
[342291104,1731696650521,-1783.25,9.787e-05,2]
[342291105,1731696650531,-1783.25,9.787e-05,2]
[342291106,1731696650540,-735.09,9.787e-05,2]
[342291107,1731696650550,-2938.55,9.787e-05,2]
[342291108,1731696650560,-500.0,9.787e-05,2]
[342291109,1731696650569,-500.0,9.787e-05,2]
[342291110,1731696650579,-2165.98,9.787e-05,2]
[342291111,1731696650588,-500.0,9.787e-05,2]
[342291112,1731696650598,-500.0,9.787e-05,2]
[342291113,1731696650610,-2211.16,9.787e-05,2]
[342291114,1731696650620,-500.0,9.787e-05,2]
[342291115,1731696650630,-500.0,9.787e-05,2]
[342291116,1731696650639,-3858.08,9.787e-05,2]
[342291117,1731696650649,-1354.2,9.787e-05,2]
[342291118,1731696650660,-627.87,9.787e-05,2]
[342291119,1731696650670,-500.0,9.787e-05,2]
[342291120,1731696650679,-500.0,9.787e-05,2]
[342291121,1731696650689,-500.0,9.787e-05,2]
[342291122,1731696650699,-500.0,9.787e-05,2]
[342291123,1731696650710,-500.0,9.787e-05,2]
[342291124,1731696650720,-500.0,9.787e-05,2]
[342291125,1731696650729,-500.0,9.787e-05,2]
[342291126,1731696650738,-2455.07,9.787e-05,2]
[342291127,1731696650749,-500.0,9.787e-05,2]
[342291128,1731696650758,-981.78,9.787e-05,2]
[342291129,1731696650768,-1186.42,9.787e-05,2]
[342291130,1731696650777,-500.0,9.787e-05,2]
[342291131,1731696650789,-558.18692263,9.787e-05,2]
[342291132,1731696650799,-500.0,9.787e-05,2]
[342291133,1731696650809,-627.27,9.787e-05,2]
[342291134,1731696650818,-2303.63,9.787e-05,2]
[342291135,1731696650827,-500.0,9.787e-05,2]
[342291136,1731696650837,-990.03,9.787e-05,2]
[342291137,1731696650847,-500.0,9.787e-05,2]
[342291138,1731696650859,-500.0,9.787e-05,2]
[342291139,1731696650868,-939.86,9.787e-05,2]
[342291140,1731696650878,-1523.81,9.787e-05,2]
[342291141,1731696650888,-1217.44,9.787e-05,2]
[342291142,1731696650897,-500.0,9.787e-05,2]
[342291143,1731696650907,-500.0,9.787e-05,2]
[342291144,1731696650916,-500.0,9.787e-05,2]
[342291145,1731696650926,-500.0,9.787e-05,2]
[342291146,1731696650935,-2013.85,9.787e-05,2]
[342291147,1731696650945,-500.0,9.787e-05,2]
[342291148,1731696650955,-500.0,9.787e-05,2]
[342291149,1731696650964,-500.0,9.787e-05,2]
[342291150,1731696650974,-500.0,9.787e-05,2]
[342291151,1731696650983,-1778.05,9.787e-05,2]
[342291152,1731696650993,-816.5,9.787e-05,2]
[342291153,1731696651003,-574.75,9.787e-05,2]
[342291154,1731696651012,-221.29151297,9.787e-05,2]
[342291155,1731696651022,-500.0,9.787e-05,2]
[342291156,1731696651032,-840.46,9.787e-05,2]
[342291157,1731696651041,-978.51,9.787e-05,2]
[342291158,1731696651051,-978.51,9.787e-05,2]
[342291159,1731696651060,-1058.34,9.787e-05,2]
[342291160,1731696651069,-181.23190983,9.787e-05,2]
[342291161,1731696651078,-500.0,9.787e-05,2]
[342291162,1731696651088,-1176.95,9.787e-05,2]
[342291163,1731696651096,-781.08,9.787e-05,2]
[342291164,1731696651106,-500.0,9.787e-05,2]
[342291165,1731696651117,-500.0,9.787e-05,2]
[342291166,1731696651127,-500.0,9.787e-05,2]
[342291167,1731696651136,-500.0,9.787e-05,2]
[342291168,1731696651145,-500.0,9.787e-05,2]
[342291169,1731696651155,-500.0,9.787e-05,2]
[342291170,1731696651164,-578.27684617,9.787e-05,2]
[342291171,1731696651173,-551.87,9.787e-05,2]
[342291172,1731696651183,-500.0,9.787e-05,2]
[342291173,1731696651192,-1136.05,9.787e-05,2]
[342291174,1731696651202,-500.0,9.787e-05,2]
[342291175,1731696651211,-875.8,9.787e-05,2]
[342291176,1731696651221,-500.0,9.787e-05,2]
[342291177,1731696651232,-1100.83,9.787e-05,2]
[342291178,1731696651242,-500.0,9.787e-05,2]
[342291179,1731696651251,-500.0,9.787e-05,2]
[342291180,1731696651261,-542.03,9.787e-05,2]
[342291181,1731696651270,-500.0,9.787e-05,2]
[342291182,1731696651280,-500.0,9.787e-05,2]
[342291183,1731696651289,-500.0,9.787e-05,2]
[342291184,1731696651299,-500.0,9.787e-05,2]
[342291185,1731696651308,-500.0,9.787e-05,2]
[342291186,1731696651317,-655.52,9.787e-05,2]
[342291187,1731696651326,-578.89,9.787e-05,2]
[342291188,1731696651336,-500.0,9.788e-05,2]
[342291189,1731696651345,-500.0,9.788e-05,2]
[342291190,1731696651355,-500.0,9.788e-05,2]
[342291191,1731696651369,-500.0,9.788e-05,2]
[342291192,1731696651378,-500.0,9.788e-05,2]
[342291193,1731696651387,-500.0,9.788e-05,2]
[342291194,1731696651397,-500.0,9.788e-05,2]
[342291195,1731696651407,-426.5910726,9.788e-05,2]
[342291196,1731696651416,-500.0,9.788e-05,2]
[342291197,1731696651425,-500.0,9.788e-05,2]
[342291198,1731696651434,-500.0,9.788e-05,2]
[342291199,1731696651444,-500.0,9.788e-05,2]
[342291200,1731696651454,-500.0,9.788e-05,2]
[342291201,1731696651463,-500.0,9.788e-05,2]
[342291202,1731696651472,-500.0,9.788e-05,2]
[342291203,1731696651482,-500.0,9.788e-05,2]
[342291204,1731696651492,-500.0,9.788e-05,2]
[342291205,1731696651501,-500.0,9.788e-05,2]
[342291206,1731696651511,-500.0,9.788e-05,2]
[342291207,1731696651521,-500.0,9.788e-05,2]
[342291208,1731696651530,-500.0,9.788e-05,2]
[342291209,1731696651540,-504.94798706,9.788e-05,2]
[342291210,1731696651550,-210.49647815,9.788e-05,2]
[342291211,1731696651559,-500.0,9.788e-05,2]
[342291212,1731696651569,-500.0,9.788e-05,2]
[342291213,1731696651579,-539.15573385,9.788e-05,2]
[342291214,1731696651589,-500.0,9.788e-05,2]
[342291215,1731696651598,-500.0,9.788e-05,2]
[342291216,1731696651611,-500.0,9.788e-05,2]
[342291217,1731696651622,-500.0,9.788e-05,2]
[342291218,1731696651631,-500.0,9.788e-05,2]
[342291219,1731696651641,-500.0,9.788e-05,2]
[342291220,1731696651805,-500.0,9.788e-05,2]
[342291221,1731696651816,-1084.09590903,9.788e-05,3]
[342291222,1731696651826,-500.0,9.788e-05,2]
[342291223,1731696651836,-500.0,9.788e-05,2]
[342291224,1731696651847,-500.0,9.788e-05,2]
[342291225,1731696651860,-500.0,9.788e-05,2]
[342291226,1731696651872,-500.0,9.788e-05,2]
[342291227,1731696651885,-500.0,9.788e-05,2]
[342291228,1731696651896,-500.0,9.788e-05,2]
[342291229,1731696651906,-500.0,9.788e-05,2]
[342291230,1731696651916,-500.0,9.788e-05,2]
[342291231,1731696651926,-500.0,9.788e-05,2]
[342291232,1731696651936,-500.0,9.788e-05,2]
[342291233,1731696651945,-500.0,9.788e-05,2]
[342291234,1731696651955,-500.0,9.788e-05,2]
[342291235,1731696651966,-500.0,9.788e-05,2]
[342291236,1731696651976,-500.0,9.788e-05,2]
[342291237,1731696651986,-538.40605017,9.788e-05,2]
[342291238,1731696651996,-500.0,9.788e-05,2]
[342291239,1731696652006,-500.0,9.788e-05,2]
[342291240,1731696652016,-500.0,9.788e-05,2]
[342291241,1731696652026,-500.0,9.788e-05,2]
[342291242,1731696652036,-500.0,9.788e-05,2]
[342291243,1731696652045,-500.0,9.788e-05,2]
[342291244,1731696652055,-500.0,9.788e-05,2]
[342291245,1731696652065,-500.0,9.788e-05,2]
[342291246,1731696652075,-634.96297321,9.788e-05,2]
[342291247,1731696652085,-500.0,9.788e-05,2]
[342291248,1731696652094,-500.0,9.788e-05,2]
[342291249,1731696652104,-500.0,9.788e-05,2]
[342291250,1731696652121,-412.49730555,9.788e-05,2]
[342291251,1731696652130,-500.0,9.788e-05,2]
[342291252,1731696652140,-500.0,9.788e-05,2]
[342291253,1731696652150,-500.0,9.788e-05,2]
[342291254,1731696652160,-500.0,9.788e-05,2]
[342291255,1731696652170,-500.0,9.788e-05,2]
[342291256,1731696652180,-500.0,9.788e-05,2]
[342291257,1731696652190,-500.0,9.788e-05,2]
[342291258,1731696652200,-500.0,9.788e-05,2]
[342291259,1731696652210,-500.0,9.788e-05,2]
[342291260,1731696652220,-500.0,9.788e-05,2]
[342291261,1731696652230,-500.0,9.788e-05,2]